bitfinex-derivatives/quotes_SOLF0:USTF0_20250706
["timestamp","ask_amount","ask_price","bid_price","bid_amount"]
[1751836263098,6.5914,151.68,151.65,9.70655876]
[1751836263297,16.7913112,151.67,151.65,9.70655876]
[1751836263499,6.5914,151.68,151.65,9.70655876]
[1751836263702,16.79110436,151.67,151.65,9.70655876]
[1751836263906,6.5914,151.68,151.65,9.70655876]
[1751836264203,16.79110439,151.67,151.65,9.70655876]
[1751836264399,6.5914,151.68,151.65,9.70655876]
[1751836264600,16.79087764,151.67,151.65,9.70655876]
[1751836264799,6.5914,151.68,151.65,9.70655876]
[1751836265100,16.79087764,151.67,151.65,9.70655876]
[1751836265401,6.5914,151.68,151.65,9.70655876]
[1751836265602,16.79076143,151.67,151.65,9.70655876]
[1751836265801,6.5914,151.68,151.65,9.70655876]
[1751836266002,44.52,151.7,151.67,3.11435876]
[1751836266193,16.78835742,151.69,151.67,3.11435876]
[1751836266398,16.78835742,151.69,151.59,4.4733]
[1751836266399,47.63435876,151.7,151.66,3.11435876]
[1751836266599,23.4522809,151.69,151.66,9.70615876]
[1751836266798,6.591,151.69,151.66,9.70615876]
[1751836268009,6.591,151.69,151.67,6.5915]
[1751836268299,44.52,151.7,151.68,3.11435876]
[1751836268703,44.52,151.7,151.69,6.5907]
[1751836270307,44.52,151.7,151.69,9.70505876]
[1751836271810,44.48,151.74,151.69,3.11435876]
[1751836272104,4.15217155,151.73,151.72,3.11435876]
[1751836272309,44.48,151.74,151.72,3.11435876]
[1751836272506,44.48,151.74,151.73,3.11435876]
[1751836272906,9.70185876,151.77,151.73,3.11435876]
[1751836273101,4.14953568,151.76,151.73,3.11435876]
[1751836273303,3.11435876,151.77,151.73,3.11435876]
[1751836273508,4.1466349,151.76,151.73,3.11435876]
[1751836273705,3.11435876,151.77,151.73,3.11435876]
[1751836273910,4.1466349,151.76,151.73,3.11435876]
[1751836274108,3.11435876,151.77,151.73,3.11435876]
[1751836274309,9.70195876,151.77,151.74,6.5883]
[1751836274808,6.5878,151.76,151.73,9.70325876]
[1751836276611,47.59435876,151.78,151.74,3.11435876]
[1751836276816,623.08805716,151.82,151.77,3.11435876]
[1751836277015,20.05875575,151.81,151.77,3.11435876]
[1751836277216,8.70373464,151.8,151.77,3.11435876]
[1751836277413,4.18338518,151.79,151.77,3.11435876]
[1751836277604,613.88,151.82,151.77,3.11435876]
[1751836277808,7.29501786,151.81,151.78,3.11435876]
[1751836278011,3.11435876,151.81,151.78,3.11435876]
[1751836278208,6.586,151.8,151.78,3.11435876]
[1751836278612,3.11435876,151.81,151.78,3.11435876]
[1751836278804,9.70025876,151.81,151.78,3.11435876]
[1751836279207,3.11435876,151.81,151.78,3.11435876]
[1751836280415,3.11435876,151.81,151.77,6.5872]
[1751836280416,3.11435876,151.81,151.77,9.70155876]
[1751836280616,6.586,151.8,151.77,9.70155876]
[1751836283615,9.70005876,151.81,151.77,9.70155876]
[1751836283815,198.12005876,151.81,151.77,9.70155876]
[1751836284019,198.12005876,151.81,151.78,3.11435876]
[1751836284316,6.5857,151.81,151.79,3.11435876]
[1751836284616,51.0653,151.82,151.79,3.11435876]
[1751836284810,239.4653,151.82,151.79,3.11435876]
[1751836285011,44.48,151.82,151.8,3.11435876]
[1751836285611,44.48,151.82,151.8,9.70025876]
[1751836285818,44.48,151.82,151.8,3.11435876]
[1751836286417,51.0652,151.82,151.8,3.11435876]
[1751836288020,44.48,151.82,151.74,4.3854]
[1751836288226,3.11435876,151.79,151.74,4.3854]
[1751836288417,3.11435876,151.8,151.77,3.11435876]
[1751836288725,6.5862,151.8,151.78,3.11435876]
[1751836290020,6.5862,151.8,151.77,3.11435876]
[1751836290615,6.5862,151.8,151.77,9.70145876]
[1751836290921,6.5862,151.8,151.77,6.5871]
[1751836296225,44.48,151.82,151.6,401.47996919]
[1751836296425,237.77902007,151.82,151.75,4.85902007]
[1751836297025,6.586,151.8,151.77,6.587]
[1751836298415,6.5864,151.79,151.75,4.85854391]
[1751836299525,6.5864,151.79,151.77,6.5872]
[1751836299729,6.5864,151.79,151.75,4.85854391]
[1751836300126,6.5864,151.79,151.76,6.5873]
[1751836300524,6.5864,151.79,151.75,4.85854391]
[1751836300724,6.5864,151.79,151.76,6.5876]
[1751836301327,6.5864,151.79,151.75,4.85854391]
[1751836302626,6.5864,151.79,151.7,49.152]
[1751836302928,6.5864,151.79,151.74,4.85854391]
[1751836303625,6.5864,151.79,151.77,6.5872]
[1751836305226,6.5862,151.8,151.77,6.5872]
[1751836307421,6.5864,151.79,151.77,6.5872]
[1751836307728,6.5864,151.79,151.76,6.5876]
[1751836310823,7.43980679,151.78,151.74,3.11108071]
[1751836311027,3.11108071,151.78,151.74,3.11108071]
[1751836311226,4.481,151.81,151.74,3.11108071]
[1751836311418,3.11108071,151.78,151.74,3.11108071]
[1751836312028,9.69818071,151.78,151.75,6.5879]
[1751836312231,6.5871,151.78,151.75,6.5879]
[1751836312429,9.69818071,151.78,151.75,6.5879]
[1751836313228,4.33702494,151.77,151.75,6.5879]
[1751836313532,9.69818071,151.78,151.75,6.5879]
[1751836313728,4.33702494,151.77,151.75,6.5879]
[1751836313929,9.69818071,151.78,151.75,6.5879]
[1751836314120,4.33702494,151.77,151.75,6.5879]
[1751836314319,9.69818071,151.78,151.75,6.5879]
[1751836314520,4.33936986,151.77,151.75,6.5879]
[1751836314720,9.69818071,151.78,151.75,6.5879]
[1751836314923,4.33936986,151.77,151.75,6.5879]
[1751836315123,9.69818071,151.78,151.75,6.5879]
[1751836315323,4.34214645,151.77,151.75,6.5879]
[1751836315531,9.69818071,151.78,151.75,6.5879]
[1751836315730,4.34214645,151.77,151.75,6.5879]
[1751836316031,9.69818071,151.78,151.75,6.5879]
[1751836316332,4.34227411,151.77,151.75,6.5879]
[1751836316525,4.34227411,151.76,151.75,6.5879]
[1751836316923,9.69818071,151.78,151.75,6.5879]
[1751836317124,4.3455975,151.77,151.76,6.5877]
[1751836317327,4.3455975,151.77,151.76,9.69878071]
[1751836317525,7.59208071,151.81,151.76,9.69878071]
[1751836317725,23.87294933,151.8,151.78,3.11108071]
[1751836317926,17.28694933,151.79,151.77,3.11108071]
[1751836318127,8.95353617,151.78,151.77,3.11108071]
[1751836318433,8.95541729,151.78,151.77,3.11108071]
[1751836320135,17.29322358,151.78,151.76,9.69878071]
[1751836320436,8.95541729,151.77,151.76,9.69878071]
[1751836322134,17.29976853,151.77,151.76,9.69878071]
[1751836322829,17.3045047,151.77,151.76,9.69878071]
[1751836323227,8.96015346,151.77,151.76,9.69878071]
[1751836329040,8.97574086,151.77,151.76,9.69878071]
[1751836329537,8.97562398,151.77,151.76,9.69878071]
[1751836331039,8.97562398,151.77,151.76,6.5877]
[1751836332236,8.93896438,151.77,151.76,6.5877]
[1751836332733,8.93896438,151.77,151.76,9.69878071]
[1751836332938,4.31576868,151.77,151.76,9.69878071]
[1751836335333,6.5864,151.79,151.76,9.69878071]
[1751836335535,4.62110441,151.78,151.77,3.11108071]
[1751836335734,17.08892093,151.78,151.77,3.11108071]
[1751836337137,17.08892093,151.78,151.76,9.69878071]
[1751836337339,6.5864,151.79,151.76,9.69878071]
[1751836337540,17.09040213,151.78,151.77,3.11108071]
[1751836338339,17.09040213,151.78,151.76,9.69878071]
[1751836338543,8.7534221,151.77,151.76,9.69878071]
[1751836343447,44.48,151.82,151.76,9.69878071]
[1751836343448,12.35363311,151.87,151.76,54.26930285]
[1751836343648,8.34580821,151.86,151.77,6.8774]
[1751836343849,69.3603423,151.91,151.85,3.10609826]
[1751836343850,6.5824,151.89,151.85,3.10609826]
[1751836344048,8.34397674,151.88,151.87,3.10609826]
[1751836345538,10.63779263,151.91,151.87,9.68899826]
[1751836345739,8.07805908,151.9,151.88,3.10609826]
[1751836345944,8.07790866,151.89,151.81,44.58]
[1751836346141,7.16239089,151.91,151.87,3.10609826]
[1751836346341,8.07627625,151.9,151.77,6.8774]
[1751836346546,6.5834,151.86,151.83,9.69069826]
[1751836346742,4.05629263,151.91,151.84,3.10609826]
[1751836346743,3.10609826,151.88,151.84,3.10609826]
[1751836346951,4.85484447,151.89,151.82,4.85484447]
[1751836347249,6.583,151.87,151.82,4.85484447]
[1751836348643,6.5835,151.86,151.83,6.5844]
[1751836350255,6.5835,151.86,151.83,6.5846]
[1751836351157,1.67289263,151.91,151.84,9.70968894]
[1751836351352,1.67289263,151.91,151.88,4.85484447]
[1751836351650,1.67289263,151.91,151.9,4.85484447]
[1751836352153,1.67289263,151.91,151.9,11.43644447]
[1751836359563,1.67289263,151.91,151.87,4.85484447]
[1751836360565,1.67289263,151.91,151.88,6.5824]
[1751836364066,8.25419263,151.91,151.88,6.5824]
[1751836365470,1.67289263,151.91,151.88,6.5824]
[1751836368168,8.25429263,151.91,151.88,6.5824]
[1751836368365,8.25429263,151.91,151.86,6.5832]
[1751836368366,1.67289263,151.91,151.86,6.5832]
[1751836368666,6.5266173,151.91,151.86,6.5832]
[1751836369663,6.5266173,151.91,151.85,6.5837]
[1751836369863,6.5266173,151.91,151.83,49.85372467]
[1751836370366,6.5825,151.89,151.85,6.5835]
[1751836371163,6.5825,151.89,151.86,6.5834]
[1751836371466,6.5825,151.89,151.83,49.85372467]
[1751836371672,6.5825,151.89,151.85,6.5836]
[1751836373569,6.5826,151.88,151.85,6.5836]
[1751836374673,6.5823,151.89,151.86,6.5834]
[1751836381479,1.67289263,151.91,151.86,4.85347064]
[1751836381681,1.67289263,151.91,151.9,4.84926959]
[1751836382075,1.67289263,151.91,151.9,6.5816]
[1751836384279,1.67289263,151.91,151.89,6.5819]
[1751836384481,1.67289263,151.91,151.86,4.84926959]
[1751836386084,1.67289263,151.91,151.89,6.582]
[1751836390591,1.67289263,151.91,151.9,6.5816]
[1751836390787,5.82407277,151.91,151.9,6.5816]
[1751836391792,1.67289263,151.91,151.9,6.5816]
[1751836394593,5.79879495,151.91,151.89,6.5819]
[1751836394788,1.67289263,151.91,151.89,6.5819]
[1751836401801,1.67289263,151.91,151.9,6.5816]
[1751836402203,5.80135595,151.91,151.9,6.5816]
[1751836402902,5.80135595,151.91,151.89,6.5819]
[1751836403202,1.67289263,151.91,151.89,6.5819]
[1751836404105,1.67289263,151.91,151.89,6.5819]
[1751836404504,1.67289263,151.91,151.9,6.5816]
[1751836404703,5.80288098,151.91,151.9,6.5816]
[1751836405294,1.67289263,151.91,151.9,6.5816]
[1751836411305,9.263e-05,151.91,151.9,6.5816]
[1751836411504,9.263e-05,151.91,151.9,13.1248]
[1751836412201,4.40027316,152.01,151.9,828.96531385]
[1751836412405,4.84267249,152.04,151.96,4.84267249]
[1751836412601,4.84267249,152.02,151.91,18.18252445]
[1751836412796,4.84267249,152.0,151.9,593.24572445]
[1751836413001,4.84267249,151.97,151.9,6.5432]
[1751836413198,4.84267249,151.97,151.9,11.38587249]
[1751836413403,4.84267249,151.99,151.9,11.38587249]
[1751836413799,6.5787,151.97,151.9,11.38587249]
[1751836414309,6.5787,151.97,151.94,6.5799]
[1751836417598,6.5783,151.98,151.94,6.5799]
[1751836418407,6.5783,151.98,151.95,6.5793]
[1751836419710,6.5783,151.98,151.94,6.5798]
[1751836420507,6.5788,151.97,151.94,6.5798]
[1751836420701,6.5788,151.97,151.91,4.84267249]
[1751836421510,6.5788,151.97,151.94,6.5798]
[1751836427818,6.5783,151.98,151.94,6.5798]
[1751836428519,6.5786,151.97,151.94,6.5798]
[1751836428820,9.68169215,151.97,151.94,6.5798]
[1751836429418,3.10309215,151.97,151.95,6.5795]
[1751836429817,3.10309215,151.97,151.93,3.10309215]
[1751836430021,9.68179215,151.97,151.94,6.5795]
[1751836431525,6.5787,151.97,151.94,6.5795]
[1751836433119,6.5784,151.98,151.95,6.5793]
[1751836433325,9.68140561,151.98,151.95,6.5793]
[1751836433923,6.5784,151.98,151.95,6.5793]
[1751836434421,6.5784,151.98,151.95,9.68230561]
[1751836435819,6.5784,151.98,151.95,9.6815161]
[1751836436024,48.1422161,152.0,151.95,3.1022161]
[1751836436225,12.16823858,151.99,151.95,3.1022161]
[1751836436426,48.1422161,152.0,151.9,6.5432]
[1751836436427,48.1422161,152.0,151.96,3.1022161]
[1751836436624,12.16886942,151.99,151.96,3.1022161]
[1751836436820,6.5778,151.99,151.95,6.5793]
[1751836437019,45.04,152.0,151.95,6.5793]
[1751836437324,12.1689601,151.99,151.95,6.5793]
[1751836437525,10.68212441,151.98,151.95,6.5793]
[1751836437726,6.5784,151.98,151.95,6.5793]
[1751836439926,6.5787,151.97,151.94,11.42666607]
[1751836440326,45.04,152.0,151.95,6.5792]
[1751836440526,12.18177321,151.99,151.95,6.5792]
[1751836440730,45.04,152.0,151.95,6.5792]
[1751836441023,6.5785,151.98,151.95,6.5792]
[1751836441327,6.5787,151.97,151.94,11.42676607]
[1751836441530,45.04,152.0,151.93,4.84696607]
[1751836441730,4.10512296,151.99,151.95,4.84696607]
[1751836441923,6.5782,151.98,151.93,4.84696607]
[1751836442119,45.04,152.0,151.96,6.579]
[1751836442324,4.11597422,151.99,151.96,6.579]
[1751836442630,51.6176,152.0,151.93,4.84696607]
[1751836442828,51.6176,152.0,151.96,6.5788]
[1751836443020,51.6176,152.0,151.93,4.84696607]
[1751836443021,51.6176,152.0,151.95,4.84696607]
[1751836443223,45.04,152.0,151.96,4.8459262]
[1751836443820,45.04,152.0,151.91,45.26]
[1751836444020,45.04,152.0,151.97,6.5784]
[1751836444323,45.04,152.0,151.91,45.26]
[1751836444529,45.04,152.0,151.97,6.5782]
[1751836444722,4.4514,152.03,151.95,4.84594957]
[1751836444922,4.4514,152.03,151.91,45.26]
[1751836444923,12.19365058,152.02,151.97,4.84594957]
[1751836445231,4.4514,152.03,151.99,4.84594957]
[1751836445528,8.07690278,152.02,152.0,6.577]
[1751836445724,45.12,152.04,151.99,4.84594957]
[1751836446124,1.67289263,152.06,152.01,4.84594957]
[1751836446323,8.07264799,152.05,152.01,4.84594957]
[1751836446631,1.67289263,152.06,152.03,6.5758]
[1751836446830,4.84594957,152.04,151.97,6.8275]
[1751836447030,4.16834465,152.03,151.96,49.96594957]
[1751836447226,4.84594957,152.04,151.96,49.96594957]
[1751836447426,4.84594957,152.0,151.94,18.18252445]
[1751836447626,4.16957433,151.99,151.93,27.70387402]
[1751836447830,4.84594957,152.0,151.93,27.70387402]
[1751836448022,10.74788054,151.99,151.93,27.70387402]
[1751836448331,6.5778,151.99,151.93,9.52134957]
[1751836448532,11.42334957,152.0,151.93,9.52134957]
[1751836448730,6.5774,152.0,151.95,4.84594957]
[1751836449122,6.5774,152.0,151.96,6.5787]
[1751836449730,6.5774,152.0,151.97,6.5785]
[1751836450534,6.5772,152.01,151.95,4.84594957]
[1751836450728,7.06104957,152.04,151.97,4.84594957]
[1751836450934,12.19541152,152.03,151.97,4.84594957]
[1751836451234,1.67289263,152.06,152.01,4.84594957]
[1751836451435,1.67289263,152.06,152.04,4.84594957]
[1751836451826,1.67289263,152.06,152.05,6.5752]
[1751836452536,1.67289263,152.06,152.04,11.42134957]
[1751836453836,1.67289263,152.06,152.03,6.5759]
[1751836454932,1.67289263,152.06,152.01,4.84594957]
[1751836455536,1.67289263,152.06,152.03,6.576]
[1751836456137,1.67289263,152.06,152.04,6.5755]
[1751836457538,8.24759263,152.06,152.03,6.5759]
[1751836457732,8.24759263,152.06,152.01,4.84594957]
[1751836458138,8.24759263,152.06,152.03,6.576]
[1751836458942,6.5753,152.05,152.02,6.5763]
[1751836459134,1.67289263,152.06,152.01,4.84594957]
[1751836460642,1.67289263,152.06,152.04,4.84594957]
[1751836461446,1.67289263,152.06,152.05,6.5752]
[1751836461944,1.67289263,152.06,152.04,11.42144957]
[1751836462642,1.67289263,152.06,152.04,6.5755]
[1751836464441,1.67289263,152.06,152.05,6.5752]
[1751836465941,1.67289263,152.06,152.04,6.5753]
[1751836467044,1.67289263,152.06,152.05,6.5752]
[1751836467247,1.67289263,152.06,152.03,4.84594957]
[1751836467648,1.67289263,152.06,152.04,6.5755]
[1751836468152,1.67289263,152.06,152.05,6.5752]
[1751836473054,1.67289263,152.06,152.03,4.84594957]
[1751836473055,1.67289263,152.17,152.03,45.08]
[1751836473252,4.84594957,152.09,152.0,2.3061]
[1751836473454,4.84594957,152.09,152.01,4.84594957]
[1751836473656,7.96881917,152.11,152.04,6.5753]
[1751836473852,4.84594957,152.07,152.0,2.3061]
[1751836474257,6.5748,152.06,152.02,6.5761]
[1751836479359,6.5753,152.05,152.02,6.5761]
[1751836482167,6.5753,152.05,152.01,11.42264957]
[1751836485469,6.5753,152.05,152.02,6.5765]
[1751836486565,6.5753,152.05,152.01,11.42264957]
[1751836488876,45.08,152.07,152.01,11.42264957]
[1751836489078,4.09310289,152.06,152.01,11.42264957]
[1751836489272,4.09310289,152.05,152.01,11.42264957]
[1751836489577,6.5755,152.05,152.01,11.42264957]
[1751836490278,6.5755,152.05,152.02,6.5764]
[1751836492773,45.08,152.07,152.01,4.84594957]
[1751836492974,45.08,152.07,152.03,4.84594957]
[1751836494281,2.1579,152.1,152.03,4.84594957]
[1751836494475,6.5739,152.08,152.03,4.84594957]
[1751836495180,6.5739,152.08,152.05,6.5749]
[1751836496181,4.10159833,152.07,152.06,6.5747]
[1751836496381,4.10159833,152.07,152.03,4.84594957]
[1751836496585,6.5736,152.09,152.05,6.575]
[1751836496775,4.10155896,152.08,152.05,6.575]
[1751836496976,4.10155896,152.07,152.05,6.575]
[1751836497176,6.5736,152.09,152.05,6.575]
[1751836497377,4.10143793,152.08,152.05,6.575]
[1751836497580,4.10143793,152.07,152.05,6.575]
[1751836497782,6.5736,152.09,152.05,6.575]
[1751836498082,4.1339729,152.08,152.05,6.575]
[1751836498276,4.1339729,152.07,152.05,6.575]
[1751836498471,6.5736,152.09,152.05,6.575]
[1751836498676,4.13386214,152.08,152.05,6.575]
[1751836498876,4.13386214,152.07,152.05,6.575]
[1751836499175,6.5739,152.08,152.05,6.575]
[1751836499377,4.13371041,152.07,152.05,6.575]
[1751836499578,6.5739,152.08,152.05,6.575]
[1751836499784,4.13371041,152.07,152.05,6.575]
[1751836499983,6.5739,152.08,152.05,6.575]
[1751836500184,4.13371041,152.07,152.05,6.575]
[1751836500384,6.5739,152.08,152.05,6.575]
[1751836500685,4.13361558,152.07,152.05,6.575]
[1751836500982,6.5739,152.08,152.05,6.575]
[1751836501286,4.13361558,152.07,152.06,6.5747]
[1751836501483,9.15653187,152.12,152.05,4.84594957]
[1751836501780,7.97925803,152.11,152.08,4.84594957]
[1751836501983,7.97880738,152.1,152.09,6.5731]
[1751836502187,6.5719,152.13,152.09,6.5731]
[1751836502584,6.5722,152.12,152.09,6.5731]
[1751836503588,45.74,152.14,152.08,4.84594957]
[1751836503888,7.98278053,152.13,152.08,4.84594957]
[1751836504085,6.5718,152.13,152.08,4.84594957]
[1751836504489,45.74,152.14,152.08,4.84594957]
[1751836504690,6.5722,152.12,152.05,4.6191]
[1751836504892,6.5722,152.12,152.08,4.84594957]
[1751836505193,50.58594957,152.14,152.08,4.84594957]
[1751836505390,14.54965171,152.13,152.09,6.5731]
[1751836505592,6.5719,152.13,152.09,6.5731]
[1751836506690,6.5719,152.13,152.1,6.573]
[1751836507087,50.58594957,152.14,152.05,4.6191]
[1751836507283,7.97509338,152.13,152.06,4.84594957]
[1751836507497,50.58594957,152.14,152.06,4.84594957]
[1751836507791,8.00110503,152.13,152.06,4.84594957]
[1751836507992,6.5724,152.12,152.08,6.5736]
[1751836508192,50.58594957,152.14,152.08,6.5736]
[1751836508393,8.02583196,152.13,152.08,6.5736]
[1751836508586,50.58594957,152.14,152.08,6.5736]
[1751836508786,8.02598238,152.13,152.08,6.5736]
[1751836508987,50.58594957,152.14,152.08,6.5736]
[1751836509190,8.02598238,152.13,152.08,6.5736]
[1751836509389,50.58594957,152.14,152.08,6.5736]
[1751836509590,6.5725,152.12,152.08,6.5736]
[1751836510595,6.5728,152.11,152.08,6.5736]
[1751836510792,4.84594957,152.12,152.05,4.6191]
[1751836510993,8.02488157,152.11,152.05,4.6191]
[1751836511194,6.5734,152.1,152.06,6.5746]
[1751836511490,4.84594957,152.1,152.03,4.84594957]
[1751836511788,4.84594957,152.1,152.05,6.5749]
[1751836512693,6.5739,152.08,152.05,6.5749]
[1751836512994,4.84594957,152.08,152.03,6.5758]
[1751836513295,6.575,152.06,152.01,50.2936]
[1751836513688,6.575,152.06,152.02,6.5761]
[1751836514693,6.575,152.06,152.03,6.576]
[1751836515899,6.575,152.06,152.02,6.5763]
[1751836517187,45.52,152.09,152.01,4.84594957]
[1751836517391,4.12808362,152.08,152.03,4.84594957]
[1751836517588,45.52,152.09,152.03,4.84594957]
[1751836517897,4.07350128,152.08,152.04,6.5754]
[1751836518097,45.52,152.09,152.04,6.5754]
[1751836518498,6.5741,152.08,152.04,6.5754]
[1751836518799,45.52,152.09,152.04,6.5754]
[1751836519000,4.07380773,152.08,152.04,6.5754]
[1751836519197,45.52,152.09,152.04,6.5754]
[1751836519394,4.07402999,152.08,152.04,6.5754]
[1751836519593,6.5744,152.07,152.04,6.5754]
[1751836521996,6.5756,152.05,151.99,2.3529]
[1751836522194,45.52,152.09,152.0,4.84594957]
[1751836522195,4.84594957,152.08,152.0,4.84594957]
[1751836522394,4.07525929,152.07,152.0,4.84594957]
[1751836522600,4.84594957,152.08,152.0,4.84594957]
[1751836522800,4.07525868,152.07,152.0,4.84594957]
[1751836523000,4.84594957,152.08,152.0,4.84594957]
[1751836523301,6.5749,152.06,152.02,6.5762]
[1751836523497,4.84594957,152.08,152.02,6.5762]
[1751836523697,4.07567368,152.07,152.02,6.5762]
[1751836523897,4.84594957,152.08,152.02,6.5762]
[1751836524498,6.5746,152.07,152.03,4.84594957]
[1751836525104,6.5746,152.07,152.03,11.42164957]
[1751836525298,6.5746,152.07,152.03,4.84594957]
[1751836525505,45.52,152.09,152.05,4.84594957]
[1751836525706,45.52,152.09,152.06,6.5745]
[1751836526000,45.52,152.09,152.05,4.84594957]
[1751836527497,45.52,152.09,152.06,6.5746]
[1751836527803,45.52,152.09,152.05,4.84594957]
[1751836529607,52.0935,152.09,152.06,6.5744]
[1751836530703,6.574,152.08,152.05,6.575]
[1751836530912,45.52,152.09,152.04,4.84594957]
[1751836531405,52.0936,152.09,152.06,6.5743]
[1751836531605,47.7136,152.13,152.06,4.84594957]
[1751836531805,12.07038958,152.12,152.06,4.84594957]
[1751836532011,10.6483337,152.11,152.08,6.5735]
[1751836532208,6.5726,152.11,152.08,6.5735]
[1751836534713,6.5726,152.11,152.09,6.5734]
[1751836535419,4.12094771,152.1,152.09,6.5734]
[1751836541812,4.14398347,152.1,152.09,6.5734]
[1751836542719,4.14126063,152.1,152.09,6.5734]
[1751836542918,238.4936,152.13,152.1,6.5728]
[1751836543118,12.21329228,152.12,152.1,6.5728]
[1751836543316,4.14113872,152.11,152.1,6.5728]
[1751836543512,4.14113872,152.11,152.09,6.5733]
[1751836543717,6.5722,152.12,152.09,6.5733]
[1751836543919,4.14114514,152.11,152.09,6.5733]
[1751836544115,6.5722,152.12,152.09,6.5733]
[1751836544322,4.14117699,152.11,152.09,6.5733]
[1751836544521,6.5722,152.12,152.09,6.5733]
[1751836544721,4.14117699,152.11,152.09,6.5733]
[1751836544921,6.5722,152.12,152.09,6.5733]
[1751836545123,4.14117699,152.11,152.09,6.5733]
[1751836545326,6.5726,152.11,152.09,6.5733]
[1751836547321,6.5722,152.12,152.09,6.5733]
[1751836547522,4.15233891,152.11,152.08,4.84594957]
[1751836547726,190.6,152.12,152.08,4.84594957]
[1751836547919,4.15233891,152.11,152.08,4.84594957]
[1751836548124,197.1721,152.12,152.09,6.5734]
[1751836548323,4.15252823,152.11,152.09,6.5734]
[1751836548521,197.1721,152.12,152.09,6.5734]
[1751836548726,4.15252823,152.11,152.09,6.5734]
[1751836549023,197.1721,152.12,152.09,6.5734]
[1751836549224,4.15272234,152.11,152.09,6.5734]
[1751836549421,4.15272234,152.1,152.09,6.5734]
[1751836551219,197.1321,152.12,152.09,6.5734]
[1751836551426,4.15308414,152.11,152.09,6.5734]
[1751836551626,4.15308414,152.1,152.09,6.5734]
[1751836554628,6.5718,152.13,152.1,6.573]
[1751836554829,4.14183806,152.12,152.1,6.573]
[1751836555029,6.5718,152.13,152.1,6.573]
[1751836555229,4.14153931,152.12,152.1,6.573]
[1751836555427,6.5718,152.13,152.1,6.573]
[1751836555629,4.14153931,152.12,152.1,6.573]
[1751836555830,6.5718,152.13,152.1,6.573]
[1751836556029,4.14153931,152.12,152.1,6.573]
[1751836556326,6.5718,152.13,152.1,6.573]
[1751836556528,4.14114738,152.12,152.1,6.573]
[1751836556732,6.5715,152.14,152.11,6.5724]
[1751836556932,12.21250801,152.13,152.11,6.5724]
[1751836557233,4.14114738,152.12,152.11,6.5724]
[1751836557429,4.14084307,152.12,152.11,6.5724]
[1751836562334,51.971,152.15,152.12,6.5721]
[1751836562529,8.07097205,152.14,152.12,6.5721]
[1751836562729,4.14083045,152.13,152.12,6.5721]
[1751836563431,4.14099437,152.13,152.12,6.5721]
[1751836564627,45.4,152.15,152.13,6.5713]
[1751836564825,4.14002243,152.14,152.13,6.5713]
[1751836566530,6.5704,152.16,152.14,6.5712]
[1751836566721,12.21704438,152.15,152.14,6.5712]
[1751836567326,4.13941073,152.15,152.14,6.5712]
[1751836570529,8.24309263,152.17,152.14,6.5712]
[1751836571532,8.24309263,152.17,152.12,4.84594957]
[1751836571533,8.24309263,152.17,152.15,6.5707]
[1751836572235,8.24309263,152.17,152.14,6.5712]
[1751836572436,1.67289263,152.17,152.14,4.84594957]
[1751836572937,4.76795016,152.17,152.13,3.09505753]
[1751836573130,3.09505753,152.15,152.11,3.09505753]
[1751836573837,3.09505753,152.14,152.1,9.66785753]
[1751836574936,4.83815935,152.15,152.1,6.5728]
[1751836575229,8.10534063,152.14,152.08,45.16]
[1751836575435,8.10534063,152.13,152.08,45.16]
[1751836575736,2.2409,152.14,152.08,45.16]
[1751836575932,6.5726,152.11,152.08,6.5737]
[1751836577933,6.5726,152.11,152.06,4.83815935]
[1751836578139,4.1444097,152.1,152.07,6.5742]
[1751836578438,4.83815935,152.13,152.07,6.5742]
[1751836578638,6.5729,152.11,152.07,6.5742]
[1751836578834,4.09062505,152.1,152.07,6.5742]
[1751836579038,6.5729,152.11,152.07,6.5742]
[1751836579238,4.09060738,152.1,152.07,6.5742]
[1751836579441,6.5729,152.11,152.07,6.5742]
[1751836579739,4.09057916,152.1,152.08,6.5739]
[1751836579938,6.5729,152.11,152.06,4.83815935]
[1751836580239,10.66367917,152.1,152.06,4.83815935]
[1751836580439,6.5731,152.1,152.06,4.83815935]
[1751836581136,6.5731,152.1,152.05,4.83815935]